[Event "FIDE WYCC Open U14 2023"]
[Site "Montesilvano"]
[Date "2023.11.15"]
[Round "3.9"]
[White "Fan, Jingyi"]
[Black "Rustamov, Rustam"]
[Result "0-1"]
[ECO "A46"]
[WhiteElo "2035"]
[BlackElo "2229"]
[Annotator "ChessBase"]
[PlyCount "158"]
[EventDate "2023.11.13"]
[EventType "swiss"]
[EventCountry "ITA"]
[SourceTitle "playchess.com"]
[Source "ChessBase"]
[SourceQuality "1"]
[TimeControl "40/5400+30:1800+30"]

1. d4 {[%emt 0:00:04]} Nf6 {[%emt 0:00:06]} 2. Nf3 {[%emt 0:00:06]} e6 {[%emt 0:00:07]} 3. Bf4 {[%emt 0:00:06]} d5 {[%emt 0:00:15]} 4. e3 {[%emt 0:00:09]} Bd6 {[%emt 0:00:06]} 5. Bd3 {[%emt 0:00:08]} c5 {[%emt 0:00:18]} 6. dxc5 {[%emt 0:00:07]} Bxf4 {[%emt 0:00:56]} 7. exf4 {[%emt 0:00:08]} Qc7 {[%emt 0:00:08]} 8. g3 {[%emt 0:00:13]} Qxc5 {[%emt 0:00:14]} 9. O-O {[%emt 0:00:14]} O-O {[%emt 0:00:12]} 10. Nbd2 {[%emt 0:00:47]} b6 {[%emt 0:00:28]} 11. Qe2 {[%emt 0:01:51]} Bb7 {[%emt 0:00:27]} 12. Rfe1 {[%emt 0:01:12]} Nbd7 {[%emt 0:01:15]} 13. c3 {[%emt 0:04:07]} Rfe8 {[%emt 0:06:08]} 14. Rad1 {[%emt 0:08:34]} Qc7 {[%emt 0:02:48]} 15. Ne5 {[%emt 0:01:43]} Nc5 {[%emt 0:00:29]} 16. Bc2 {[%emt 0:02:06]} Rad8 {[%emt 0:01:54]} 17. Nb3 {[%emt 0:06:40]} Ba6 {[%emt 0:05:01]} 18. Qe3 {[%emt 0:00:23]} Na4 {[%emt 0:01:25]} 19. Rb1 {[%emt 0:01:07]} b5 {[%emt 0:02:19]} 20. g4 {[%emt 0:05:22]} Ne4 {[%emt 0:04:19]} 21. f3 {[%emt 0:19:12]} Nd6 {[%emt 0:00:51]} 22. Nd4 {[%emt 0:00:50]} Nc4 {[%emt 0:04:22]} 23. Nxc4 {[%emt 0:14:30]} dxc4 {[%emt 0:00:24]} 24. f5 {[%emt 0:03:56]} Qc5 {[%emt 0:06:09]} 25. fxe6 {[%emt 0:04:15]} fxe6 {[%emt 0:00:18]} 26. Qe4 {[%emt 0:04:54]} g6 {[%emt 0:00:55]} 27. Bxa4 {[%emt 0:03:10]} bxa4 {[%emt 0:00:36]} 28. Qe5 {[%emt 0:00:26]} Rd5 {[%emt 0:01:00]} 29. Qf6 {[%emt 0:00:36]} Bc8 {[%emt 0:00:46]} 30. Qf4 {[%emt 0:08:20]} Rf8 {[%emt 0:03:03]} 31. Qe3 {[%emt 0:00:04]} e5 {[%emt 0:00:11]} 32. Nc2 {[%emt 0:00:39]} Rxf3 {[%emt 0:00:18]} 33. Qxc5 {[%emt 0:00:22]} Rxc5 {[%emt 0:00:02]} 34. Ne3 {[%emt 0:00:42]} Rf4 {[%emt 0:00:56]} 35. h3 {[%emt 0:03:55]} h5 {[%emt 0:00:28]} 36. Rbd1 {[%emt 0:00:40]} Be6 {[%emt 0:03:19]} 37. Rd6 {[%emt 0:00:43]} Kf7 {[%emt 0:01:51]} 38. Ra6 {[%emt 0:00:38]} hxg4 {[%emt 0:00:58]} 39. Rxa7+ {[%emt 0:00:33]} Kf6 {[%emt 0:00:12]} 40. hxg4 {[%emt 0:00:00]} Bxg4 {[%emt 0:00:00]} 41. Rxa4 {[%emt 0:10:17]} Bf3 {[%emt 0:02:30]} 42. Rf1 {[%emt 0:01:50]} e4 {[%emt 0:02:18]} 43. Kf2 {[%emt 0:04:12]} Rg5 {[%emt 0:04:34]} 44. Ke1 {[%emt 0:02:11]} Rh4 {[%emt 0:01:53]} 45. Rxc4 {[%emt 0:06:21]} Rg3 {[%emt 0:04:36]} 46. Rf2 {[%emt 0:04:52]} Rh1+ {[%emt 0:01:56]} 47. Kd2 {[%emt 0:00:33]} Kg7 {[%emt 0:00:19]} 48. a4 {[%emt 0:04:29]} Rgg1 {[%emt 0:00:24]} 49. Rd4 {[%emt 0:04:50]} g5 {[%emt 0:01:26]} 50. a5 {[%emt 0:01:24]} Ra1 {[%emt 0:01:10]} 51. Nc2 {[%emt 0:00:40]} Rxa5 {[%emt 0:01:54]} 52. Ne1 {[%emt 0:00:26]} Re5 {[%emt 0:00:59]} 53. Rxf3 {[%emt 0:00:42]} Rh2+ {[%emt 0:01:03]} 54. Kd1 {[%emt 0:00:20]} Ra5 {[%emt 0:01:07]} 55. Rd2 {[%emt 0:00:44]} Ra1+ {[%emt 0:00:29]} 56. Kc2 {[%emt 0:00:02]} Rxd2+ {[%emt 0:00:20]} 57. Kxd2 {[%emt 0:00:02]} exf3 {[%emt 0:00:06]} 58. Nxf3 {[%emt 0:00:03]} Kf6 {[%emt 0:00:25]} 59. Ke3 {[%emt 0:01:49]} Ra2 {[%emt 0:00:59]} 60. b4 {[%emt 0:00:24]} g4 {[%emt 0:00:35]} 61. Nd2 {[%emt 0:00:22]} Ke5 {[%emt 0:00:45]} 62. Ne4 {[%emt 0:00:35]} Rc2 {[%emt 0:01:07]} 63. b5 {[%emt 0:00:29]} Rb2 {[%emt 0:02:06]} 64. Nf2 {[%emt 0:00:17]} Kf5 {[%emt 0:00:04]} 65. Nxg4 {[%emt 0:00:58]} Kxg4 {[%emt 0:00:25]} 66. c4 {[%emt 0:00:10]} Kf5 {[%emt 0:00:12]} 67. Kd4 {[%emt 0:00:04]} Ke6 {[%emt 0:00:05]} 68. Kc5 {[%emt 0:00:08]} Kd7 {[%emt 0:00:10]} 69. Kb6 {[%emt 0:00:05]} Kc8 {[%emt 0:00:11]} 70. c5 {[%emt 0:00:17]} Kb8 {[%emt 0:00:32]} 71. Ka6 {[%emt 0:02:06]} Ra2+ {[%emt 0:00:11]} 72. Kb6 {[%emt 0:00:04]} Rh2 {[%emt 0:00:20]} 73. Ka6 {[%emt 0:00:51]} Rh6+ {[%emt 0:00:28]} 74. c6 {[%emt 0:00:31]} Kc7 {[%emt 0:00:18]} 75. Ka7 {[%emt 0:00:21]} Rh1 {[%emt 0:00:14]} 76. b6+ {[%emt 0:00:06]} Kxc6 {[%emt 0:00:04]} 77. b7 {[%emt 0:00:06]} Ra1+ {[%emt 0:00:15]} 78. Kb8 {[%emt 0:00:08]} Rb1 {[%emt 0:00:08]} 79. Ka8 {[%emt 0:00:12]} Kc7 {[%emt 0:00:04]} 0-1

[Event "FIDE WYCC Open U14 2023"]
[Site "Montesilvano"]
[Date "2023.11.15"]
[Round "3.10"]
[White "Haug, Havard"]
[Black "Escudero Ribo, Eloi"]
[Result "1/2-1/2"]
[ECO "B22"]
[WhiteElo "2223"]
[BlackElo "1929"]
[Annotator "ChessBase"]
[PlyCount "109"]
[EventDate "2023.11.13"]
[EventType "swiss"]
[EventCountry "ITA"]
[SourceTitle "playchess.com"]
[Source "ChessBase"]
[SourceQuality "1"]
[TimeControl "40/5400+30:1800+30"]

1. e4 {[%emt 0:00:04]} c5 {[%emt 0:00:12]} 2. c3 {[%emt 0:00:10]} d5 {[%emt 0:00:11]} 3. exd5 {[%emt 0:00:04]} Qxd5 {[%emt 0:00:12]} 4. d4 {[%emt 0:00:07]} e6 {[%emt 0:00:11]} 5. Nf3 {[%emt 0:00:09]} Nf6 {[%emt 0:00:12]} 6. Na3 {[%emt 0:00:11]} Nc6 {[%emt 0:00:18]} 7. Be3 {[%emt 0:00:06]} cxd4 {[%emt 0:00:12]} 8. Nb5 {[%emt 0:00:06]} Qd7 {[%emt 0:00:12]} 9. Nbxd4 {[%emt 0:00:09]} Be7 {[%emt 0:00:11]} 10. Nxc6 {[%emt 0:05:23]} Qxc6 {[%emt 0:00:45]} 11. Ne5 {[%emt 0:01:00]} Qe4 {[%emt 0:00:14]} 12. Bb5+ {[%emt 0:00:42]} Kf8 {[%emt 0:00:19]} 13. Nf3 {[%emt 0:00:30]} Nd5 {[%emt 0:02:18]} 14. Bd3 {[%emt 0:09:29]} Nxe3 {[%emt 0:12:07]} 15. Bxe4 {[%emt 0:00:22]} Nxd1 {[%emt 0:00:13]} 16. Rxd1 {[%emt 0:00:03]} f5 {[%emt 0:01:17]} 17. Bc2 {[%emt 0:00:44]} Bf6 {[%emt 0:00:44]} 18. O-O {[%emt 0:01:34]} Ke7 {[%emt 0:14:38]} 19. Rfe1 {[%emt 0:03:03]} g6 {[%emt 0:00:46]} 20. Bb3 {[%emt 0:03:30]} Bd7 {[%emt 0:04:13]} 21. Ne5 {[%emt 0:09:22]} Bxe5 {[%emt 0:05:52]} 22. Rxe5 {[%emt 0:00:06]} Rhe8 {[%emt 0:00:57]} 23. f4 {[%emt 0:01:55]} Rad8 {[%emt 0:00:57]} 24. Kf2 {[%emt 0:02:06]} Kf6 {[%emt 0:02:30]} 25. h4 {[%emt 0:04:52]} h6 {[%emt 0:03:42]} 26. Re3 {[%emt 0:07:55]} Bc8 {[%emt 0:10:15]} 27. Rd4 {[%emt 0:02:48]} Rxd4 {[%emt 0:02:03]} 28. cxd4 {[%emt 0:00:04]} Rd8 {[%emt 0:00:29]} 29. Rc3 {[%emt 0:01:34]} b6 {[%emt 0:01:31]} 30. Rc7 {[%emt 0:02:10]} Bd7 {[%emt 0:07:51]} 31. Ke3 {[%emt 0:04:37]} a5 {[%emt 0:08:16]} 32. a3 {[%emt 0:07:08]} g5 {[%emt 0:01:44]} 33. hxg5+ {[%emt 0:00:24]} hxg5 {[%emt 0:00:16]} 34. g3 {[%emt 0:00:14]} gxf4+ {[%emt 0:02:21]} 35. gxf4 {[%emt 0:00:08]} Rh8 {[%emt 0:01:29]} 36. Bc4 {[%emt 0:05:21]} Rh3+ {[%emt 0:02:25]} 37. Kd2 {[%emt 0:01:38]} Be8 {[%emt 0:00:58]} 38. Rb7 {[%emt 0:00:35]} Rh2+ {[%emt 0:03:57]} 39. Kc3 {[%emt 0:00:25]} Rh3+ {[%emt 0:06:57]} 40. Kc2 {[%emt 0:00:00]} Ba4+ {[%emt 0:00:00]} 41. b3 {[%emt 0:05:51]} b5 {[%emt 0:04:57]} 42. Bxe6 {[%emt 0:00:39]} Kxe6 {[%emt 0:01:12]} 43. bxa4 {[%emt 0:00:05]} bxa4 {[%emt 0:00:25]} 44. Rb5 {[%emt 0:00:48]} Rxa3 {[%emt 0:00:52]} 45. Rxa5 {[%emt 0:00:21]} Ra2+ {[%emt 0:01:08]} 46. Kc3 {[%emt 0:00:17]} Ra3+ {[%emt 0:01:01]} 47. Kc4 {[%emt 0:00:42]} Rf3 {[%emt 0:01:17]} 48. Rxa4 {[%emt 0:00:25]} Rxf4 {[%emt 0:00:28]} 49. Ra6+ {[%emt 0:00:25]} Ke7 {[%emt 0:00:26]} 50. Kd5 {[%emt 0:00:35]} Re4 {[%emt 0:00:44]} 51. Ra7+ {[%emt 0:03:29]} Ke8 {[%emt 0:01:25]} 52. Kd6 {[%emt 0:01:40]} Rxd4+ {[%emt 0:00:16]} 53. Ke5 {[%emt 0:00:04]} Rd7 {[%emt 0:00:14]} 54. Rxd7 {[%emt 0:00:05]} Kxd7 {[%emt 0:00:04]} 55. Kxf5 {[%emt 0:00:12]} 1/2-1/2

[Event "FIDE WYCC Open U14 2023"]
[Site "Montesilvano"]
[Date "2023.11.15"]
[Round "3.11"]
[White "Banh Gia Huy"]
[Black "Gut, Lionel"]
[Result "1-0"]
[ECO "D02"]
[WhiteElo "2397"]
[BlackElo "2113"]
[Annotator "RC"]
[PlyCount "91"]
[EventDate "2023.11.13"]
[EventType "swiss"]
[EventCountry "ITA"]
[SourceTitle "playchess.com"]
[Source "ChessBase"]
[SourceQuality "1"]
[TimeControl "40/5400+30:1800+30"]

1. d4 {[%emt 0:00:25]} Nf6 {[%emt 0:00:08]} 2. Bf4 {[%emt 0:00:06]} d5 {[%emt 0:00:04]} 3. Nf3 {[%emt 0:00:04]} c5 {[%emt 0:00:07]} 4. e3 {[%emt 0:00:02]} Nc6 {[%emt 0:00:05]} 5. Nbd2 {[%emt 0:00:03]} Nh5 {[%emt 0:00:08]} 6. dxc5 {[%emt 0:01:38]} Nxf4 {[%emt 0:00:05]} 7. exf4 {[%emt 0:00:03]} g6 {[%emt 0:00:15]} 8. c3 {[%emt 0:02:54]} Bh6 {[%emt 0:00:08]} 9. g3 {[%emt 0:03:46]} O-O {[%emt 0:00:16]} 10. Nb3 {[%emt 0:02:31]} a5 {[%emt 0:01:04]} 11. Nbd4 {[%emt 0:11:54]} a4 {[%emt 0:01:29]} 12. Bb5 {[%emt 0:06:40]} Nxd4 {[%emt 0:09:23]} 13. Nxd4 {[%emt 0:00:05]} a3 {[%emt 0:01:52]} 14. b4 {[%emt 0:01:15]} f6 {[%emt 0:20:26]} 15. f5 {[%emt 0:08:52]} Qc7 {[%emt 0:12:43]} 16. O-O {[%emt 0:14:36]} gxf5 {[%emt 0:00:45]} 17. Qf3 {[%emt 0:00:21]} e6 {[%emt 0:01:33]} 18. Rae1 {[%emt 0:03:03]} Qf7 {[%emt 0:00:44]} 19. Re2 {[%emt 0:03:51]} Kh8 {[%emt 0:16:48]} 20. Rfe1 {[%emt 0:02:30]} e5 {[%emt 0:00:08]} 21. Nxf5 {[%emt 0:00:09]} Bxf5 {[%emt 0:00:01]} 22. Qxf5 {[%emt 0:00:01]} Rad8 {[%emt 0:00:40]} 23. Rd1 {[%emt 0:03:39]} Qg6 {[%emt 0:08:47]} 24. Qe6 {[%emt 0:07:18]} Qf7 {[%emt 0:03:33]} 25. Qxf7 {[%emt 0:00:19]} Rxf7 {[%emt 0:00:01]} 26. c6 {[%emt 0:00:19]} Rd6 {[%emt 0:02:08]} 27. cxb7 {[%emt 0:02:07]} Rxb7 {[%emt 0:00:51]} 28. c4 {[%emt 0:10:06]} d4 {[%emt 0:02:17]} 29. c5 {[%emt 0:01:09]} Rd8 {[%emt 0:01:59]} 30. Ba6 {[%emt 0:00:07]} Rc7 {[%emt 0:00:13]} 31. Bd3 {[%emt 0:02:55]} Rb8 {[%emt 0:01:25]} 32. Rb1 {[%emt 0:00:09]} Kg8 {[%emt 0:01:29]} 33. Rc2 {[%emt 0:03:19]} Bf8 {[%emt 0:00:01]} 34. Rb3 {[%emt 0:02:45]} Kf7 {[%emt 0:02:57]} 35. Rc4 {[%emt 0:02:22]} Ra8 {[%emt 0:00:28]} 36. Be4 {[%emt 0:00:26]} Ra4 {[%emt 0:00:10]} 37. Bd5+ {[%emt 0:01:17]} Ke7 {[%emt 0:02:51]} 38. f4 {[%emt 0:00:35]} Kd7 {[%emt 0:01:26]} 39. Rc2 {[%emt 0:03:28]} Rc8 {[%emt 0:02:04]} 40. fxe5 {[%emt 0:00:00]} fxe5 {[%emt 0:00:00]} 41. Kg2 {[%emt 0:06:25]} Kc7 {[%emt 0:00:55]} 42. b5 {[%emt 0:01:37]} Ra5 {[%emt 0:01:02]} 43. Be4 {[%emt 0:03:59]} Rb8 {[%emt 0:02:33]} 44. b6+ {[%emt 0:01:02]} Kc8 {[%emt 0:00:05]} 45. c6 {[%emt 0:00:05]} Rc5 {[%emt 0:00:01]} 46. Bf5+ {[%emt 0:00:11]} 1-0

[Event "FIDE WYCC Open U14 2023"]
[Site "Montesilvano"]
[Date "2023.11.15"]
[Round "3.12"]
[White "Uskov, Artem"]
[Black "Morkunas, Gustas"]
[Result "1-0"]
[ECO "E62"]
[WhiteElo "2380"]
[BlackElo "2052"]
[Annotator "RC"]
[PlyCount "91"]
[EventDate "2023.11.13"]
[EventType "swiss"]
[EventCountry "ITA"]
[SourceTitle "playchess.com"]
[Source "ChessBase"]
[SourceQuality "1"]
[TimeControl "40/5400+30:1800+30"]

1. c4 {[%emt 0:00:03]} Nf6 {[%emt 0:00:44]} 2. Nf3 {[%emt 0:00:06]} g6 {[%emt 0:00:08]} 3. d4 {[%emt 0:00:05]} Bg7 {[%emt 0:00:07]} 4. g3 {[%emt 0:00:06]} O-O {[%emt 0:00:07]} 5. Bg2 {[%emt 0:00:05]} d6 {[%emt 0:00:05]} 6. Nc3 {[%emt 0:00:04]} Nc6 {[%emt 0:00:14]} 7. d5 {[%emt 0:00:04]} Na5 {[%emt 0:01:42]} 8. b3 {[%emt 0:00:26]} c5 {[%emt 0:01:39]} 9. Bb2 {[%emt 0:00:06]} b6 {[%emt 0:10:52]} 10. O-O {[%emt 0:00:28]} Nb7 {[%emt 0:01:10]} 11. Re1 {[%emt 0:00:52]} e5 {[%emt 0:05:15]} 12. dxe6 {[%emt 0:00:26]} fxe6 {[%emt 0:00:12]} 13. Qc2 {[%emt 0:00:40]} Qe7 {[%emt 0:01:22]} 14. Rad1 {[%emt 0:00:26]} Rb8 {[%emt 0:03:11]} 15. Nb5 {[%emt 0:15:56]} a6 {[%emt 0:08:56]} 16. Nxd6 {[%emt 0:01:57]} Nxd6 {[%emt 0:03:23]} 17. Rxd6 {[%emt 0:00:25]} Qxd6 {[%emt 0:04:01]} 18. Be5 {[%emt 0:00:18]} Qe7 {[%emt 0:00:48]} 19. Bxb8 {[%emt 0:00:07]} Bb7 {[%emt 0:03:48]} 20. Be5 {[%emt 0:00:41]} Rd8 {[%emt 0:04:21]} 21. Rd1 {[%emt 0:00:17]} Ne8 {[%emt 0:04:22]} 22. Bxg7 {[%emt 0:00:29]} Nxg7 {[%emt 0:00:06]} 23. Rd2 {[%emt 0:01:01]} Nf5 {[%emt 0:01:28]} 24. Qd1 {[%emt 0:00:21]} Rxd2 {[%emt 0:00:46]} 25. Qxd2 {[%emt 0:00:02]} e5 {[%emt 0:06:55]} 26. Qg5 {[%emt 0:02:05]} Qd6 {[%emt 0:06:42]} 27. Qd2 {[%emt 0:01:09]} Qe7 {[%emt 0:01:01]} 28. Ne1 {[%emt 0:00:15]} e4 {[%emt 0:01:19]} 29. e3 {[%emt 0:00:16]} b5 {[%emt 0:00:22]} 30. cxb5 {[%emt 0:00:12]} axb5 {[%emt 0:00:11]} 31. Bf1 {[%emt 0:00:02]} Bc6 {[%emt 0:01:01]} 32. Qc3 {[%emt 0:01:33]} Qd6 {[%emt 0:07:11]} 33. a3 {[%emt 0:00:13]} h5 {[%emt 0:01:09]} 34. Ng2 {[%emt 0:02:37]} Ng7 {[%emt 0:04:16]} 35. h4 {[%emt 0:00:52]} Kh7 {[%emt 0:03:00]} 36. Nf4 {[%emt 0:00:09]} Nf5 {[%emt 0:00:35]} 37. Nh3 {[%emt 0:00:41]} Ne7 {[%emt 0:02:02]} 38. a4 {[%emt 0:00:35]} Nd5 {[%emt 0:00:47]} 39. Ng5+ {[%emt 0:00:06]} Kg8 {[%emt 0:00:06]} 40. Qd2 {[%emt 0:00:00]} bxa4 {[%emt 0:00:00]} 41. bxa4 {[%emt 0:00:34]} Qe5 {[%emt 0:02:21]} 42. a5 {[%emt 0:00:04]} Kg7 {[%emt 0:03:55]} 43. a6 {[%emt 0:00:47]} Qa1 {[%emt 0:02:21]} 44. Kg2 {[%emt 0:00:04]} Qf6 {[%emt 0:01:12]} 45. Qa5 {[%emt 0:00:36]} Qf5 {[%emt 0:00:27]} 46. a7 {[%emt 0:01:05]} 1-0

[Event "FIDE WYCC Open U14 2023"]
[Site "Montesilvano"]
[Date "2023.11.15"]
[Round "3.13"]
[White "Arca, Christian Gian Karlo"]
[Black "Bolat, Inayat"]
[Result "1/2-1/2"]
[ECO "E65"]
[WhiteElo "2347"]
[BlackElo "2088"]
[Annotator "RC"]
[PlyCount "88"]
[EventDate "2023.11.13"]
[EventType "swiss"]
[EventCountry "ITA"]
[SourceTitle "playchess.com"]
[Source "ChessBase"]
[SourceQuality "1"]
[TimeControl "40/5400+30:1800+30"]

1. d4 {[%emt 0:00:02]} Nf6 {[%emt 0:00:22]} 2. Nf3 {[%emt 0:00:03]} g6 {[%emt 0:00:20]} 3. g3 {[%emt 0:00:05]} Bg7 {[%emt 0:00:03]} 4. Bg2 {[%emt 0:00:04]} O-O {[%emt 0:00:07]} 5. O-O {[%emt 0:00:04]} d6 {[%emt 0:00:06]} 6. c4 {[%emt 0:00:03]} c5 {[%emt 0:00:03]} 7. Nc3 {[%emt 0:00:03]} Nc6 {[%emt 0:00:04]} 8. dxc5 {[%emt 0:00:06]} dxc5 {[%emt 0:00:03]} 9. Be3 {[%emt 0:00:18]} Be6 {[%emt 0:00:06]} 10. Qa4 {[%emt 0:00:04]} Nd4 {[%emt 0:00:06]} 11. Rad1 {[%emt 0:00:07]} Bd7 {[%emt 0:00:09]} 12. Qa3 {[%emt 0:00:03]} Nc2 {[%emt 0:02:56]} 13. Qxc5 {[%emt 0:00:21]} b6 {[%emt 0:05:22]} 14. Qg5 {[%emt 0:01:30]} h6 {[%emt 0:00:03]} 15. Qf4 {[%emt 0:00:04]} g5 {[%emt 0:00:05]} 16. Qe5 {[%emt 0:00:03]} Rc8 {[%emt 0:00:10]} 17. Nd5 {[%emt 0:00:18]} Nxd5 {[%emt 0:09:54]} 18. Qxd5 {[%emt 0:00:04]} Nxe3 {[%emt 0:00:07]} 19. fxe3 {[%emt 0:00:37]} Bc6 {[%emt 0:01:23]} 20. Qxd8 {[%emt 0:01:15]} Rfxd8 {[%emt 0:02:19]} 21. b3 {[%emt 0:00:04]} b5 {[%emt 0:06:11]} 22. Nd2 {[%emt 0:01:34]} bxc4 {[%emt 0:05:11]} 23. Nxc4 {[%emt 0:12:10]} Bb5 {[%emt 0:00:43]} 24. Rxd8+ {[%emt 0:14:41]} Rxd8 {[%emt 0:00:09]} 25. Rf5 {[%emt 0:01:01]} Rd1+ {[%emt 0:01:09]} 26. Kf2 {[%emt 0:01:09]} a6 {[%emt 0:09:23]} 27. Rd5 {[%emt 0:07:16]} Ra1 {[%emt 0:01:43]} 28. Rd8+ {[%emt 0:07:19]} Bf8 {[%emt 0:00:10]} 29. a4 {[%emt 0:09:37]} Bxc4 {[%emt 0:00:16]} 30. bxc4 {[%emt 0:00:05]} Rc1 {[%emt 0:02:25]} 31. Rc8 {[%emt 0:08:49]} e6 {[%emt 0:00:19]} 32. a5 {[%emt 0:01:03]} Kg7 {[%emt 0:07:22]} 33. Bb7 {[%emt 0:02:35]} Bb4 {[%emt 0:00:48]} 34. Bxa6 {[%emt 0:00:13]} Ra1 {[%emt 0:00:13]} 35. Bb5 {[%emt 0:02:14]} Rxa5 {[%emt 0:00:39]} 36. g4 {[%emt 0:01:34]} Kf6 {[%emt 0:03:01]} 37. Rc7 {[%emt 0:04:05]} Bd6 {[%emt 0:00:43]} 38. Rb7 {[%emt 0:02:30]} Bc5 {[%emt 0:00:39]} 39. Be8 {[%emt 0:00:23]} Ra7 {[%emt 0:00:17]} 40. Rxa7 {[%emt 0:00:00]} Bxa7 {[%emt 0:00:00]} 41. Kf3 {[%emt 0:03:40]} Ke7 {[%emt 0:02:47]} 42. Ba4 {[%emt 0:01:28]} Kd6 {[%emt 0:00:13]} 43. Ke4 {[%emt 0:00:29]} f6 {[%emt 0:00:11]} 44. h3 {[%emt 0:00:19]} Bc5 {[%emt 0:00:13]} 1/2-1/2

[Event "FIDE WYCC Open U14 2023"]
[Site "Montesilvano"]
[Date "2023.11.15"]
[Round "3.14"]
[White "Georgiadis, Anastasios"]
[Black "Sowinski, Pawel"]
[Result "0-1"]
[ECO "E71"]
[WhiteElo "2001"]
[BlackElo "2347"]
[Annotator "RC"]
[PlyCount "66"]
[EventDate "2023.11.13"]
[EventType "swiss"]
[EventCountry "ITA"]
[SourceTitle "playchess.com"]
[Source "ChessBase"]
[SourceQuality "1"]
[TimeControl "40/5400+30:1800+30"]

1. d4 {[%emt 0:00:02]} Nf6 {[%emt 0:00:05]} 2. c4 {[%emt 0:00:05]} g6 {[%emt 0:00:04]} 3. Nc3 {[%emt 0:00:11]} Bg7 {[%emt 0:00:01]} 4. e4 {[%emt 0:00:18]} d6 {[%emt 0:00:04]} 5. h3 {[%emt 0:00:22]} O-O {[%emt 0:00:06]} 6. Be3 {[%emt 0:00:12]} e5 {[%emt 0:00:04]} 7. d5 {[%emt 0:00:06]} Na6 {[%emt 0:00:03]} 8. g4 {[%emt 0:00:40]} Nc5 {[%emt 0:00:13]} 9. f3 {[%emt 0:00:35]} c6 {[%emt 0:01:17]} 10. Qd2 {[%emt 0:02:34]} cxd5 {[%emt 0:01:29]} 11. cxd5 {[%emt 0:00:11]} Ne8 {[%emt 0:01:18]} 12. O-O-O {[%emt 0:11:08]} Qa5 {[%emt 0:10:33]} 13. Kb1 {[%emt 0:06:06]} Bd7 {[%emt 0:02:45]} 14. h4 {[%emt 0:05:18]} Rb8 {[%emt 0:14:16]} 15. Nb5 {[%emt 0:11:56]} Qb6 {[%emt 0:21:15]} 16. Na3 {[%emt 0:01:57]} f5 {[%emt 0:09:34]} 17. gxf5 {[%emt 0:06:35]} gxf5 {[%emt 0:01:53]} 18. Bd3 {[%emt 0:09:54]} fxe4 {[%emt 0:08:28]} 19. Bxe4 {[%emt 0:05:11]} Nf6 {[%emt 0:02:30]} 20. Bc2 {[%emt 0:04:08]} Nh5 {[%emt 0:11:16]} 21. Nh3 {[%emt 0:04:20]} Rxf3 {[%emt 0:08:55]} 22. Ng5 {[%emt 0:02:30]} Rxe3 {[%emt 0:01:16]} 23. Bxh7+ {[%emt 0:03:48]} Kh8 {[%emt 0:00:01]} 24. Nc4 {[%emt 0:00:58]} Qa6 {[%emt 0:02:10]} 25. Nxe3 {[%emt 0:00:15]} Rf8 {[%emt 0:01:10]} 26. Qc2 {[%emt 0:02:15]} Nf4 {[%emt 0:00:20]} 27. Bf5 {[%emt 0:01:56]} Ba4 {[%emt 0:00:07]} 28. b3 {[%emt 0:02:33]} e4 {[%emt 0:01:15]} 29. Qc4 {[%emt 0:05:05]} Bb5 {[%emt 0:00:15]} 30. Qc2 {[%emt 0:01:05]} Ne2 {[%emt 0:01:07]} 31. a4 {[%emt 0:04:59]} Nc3+ {[%emt 0:00:13]} 32. Kc1 {[%emt 0:00:20]} Bd3 {[%emt 0:00:12]} 33. Rxd3 {[%emt 0:03:45]} exd3 0-1

[Event "FIDE WYCC Open U14 2023"]
[Site "Montesilvano"]
[Date "2023.11.15"]
[Round "3.15"]
[White "Dotzer, Lukas"]
[Black "Pleschke, Julius Jonas"]
[Result "1/2-1/2"]
[ECO "B48"]
[WhiteElo "2339"]
[BlackElo "2024"]
[Annotator "RC"]
[PlyCount "60"]
[EventDate "2023.11.13"]
[EventType "swiss"]
[EventCountry "ITA"]
[SourceTitle "playchess.com"]
[Source "ChessBase"]
[SourceQuality "1"]
[TimeControl "40/5400+30:1800+30"]

1. e4 {[%emt 0:00:02]} c5 {[%emt 0:00:16]} 2. Nf3 {[%emt 0:00:06]} e6 {[%emt 0:00:06]} 3. d4 {[%emt 0:00:07]} cxd4 {[%emt 0:00:06]} 4. Nxd4 {[%emt 0:00:06]} Nc6 {[%emt 0:00:18]} 5. Nc3 {[%emt 0:00:08]} Qc7 {[%emt 0:00:34]} 6. Be3 {[%emt 0:00:16]} a6 {[%emt 0:00:09]} 7. g4 {[%emt 0:00:26]} h6 {[%emt 0:01:14]} 8. f4 {[%emt 0:11:43]} b5 {[%emt 0:13:25]} 9. Nxc6 {[%emt 0:13:36]} Qxc6 {[%emt 0:04:59]} 10. Bg2 {[%emt 0:10:04]} Bb7 {[%emt 0:07:57]} 11. a3 {[%emt 0:05:11]} Rc8 {[%emt 0:17:41]} 12. Qd3 {[%emt 0:07:21]} Qc4 {[%emt 0:11:03]} 13. O-O {[%emt 0:10:19]} Bc5 {[%emt 0:06:26]} 14. Rfe1 {[%emt 0:06:41]} Qxd3 {[%emt 0:04:41]} 15. cxd3 {[%emt 0:00:53]} Bxe3+ {[%emt 0:00:06]} 16. Rxe3 {[%emt 0:03:45]} Ne7 {[%emt 0:06:21]} 17. Kf2 g5 18. f5 {[%emt 0:05:24]} e5 {[%emt 0:05:02]} 19. h4 {[%emt 0:03:07]} f6 {[%emt 0:03:14]} 20. Rh1 {[%emt 0:02:10]} Kf7 {[%emt 0:00:19]} 21. Reh3 {[%emt 0:02:39]} Kg7 {[%emt 0:00:33]} 22. hxg5 {[%emt 0:07:56]} hxg5 {[%emt 0:00:09]} 23. Rxh8 {[%emt 0:00:17]} Rxh8 {[%emt 0:00:06]} 24. Rxh8 {[%emt 0:03:44]} Kxh8 {[%emt 0:00:02]} 25. Nd5 {[%emt 0:01:42]} Bxd5 {[%emt 0:02:29]} 26. exd5 {[%emt 0:00:07]} Nc8 {[%emt 0:00:06]} 27. Ke3 {[%emt 0:01:26]} Nd6 {[%emt 0:00:13]} 28. Bf1 {[%emt 0:02:18]} a5 {[%emt 0:03:39]} 29. b4 {[%emt 0:01:22]} a4 {[%emt 0:00:50]} 30. d4 {[%emt 0:00:46]} e4 {[%emt 0:00:19]} 1/2-1/2